bitfinex-derivatives/quotes_SOLF0:USTF0_20260204
["timestamp","ask_amount","ask_price","bid_price","bid_amount"]
[1770168428129,9.0787,99.277,99.22,3.82332615]
[1770168429625,1.00853574,99.302,99.22,3.82332615]
[1770168429826,1.00853574,99.302,99.243,3.82332615]
[1770168430237,1.00853574,99.302,99.222,141.3021]
[1770168430238,1.00853574,99.328,99.256,3.82332615]
[1770168431332,9.0748,99.32,99.259,3.82332615]
[1770168431529,141.1049,99.361,99.266,3.82332615]
[1770168432338,9.0727,99.342,99.281,3.82332615]
[1770168432635,141.0603,99.393,99.293,3.82332615]
[1770168432826,141.0186,99.422,99.293,3.82332615]
[1770168432827,141.0221,99.42,99.324,3.82332615]
[1770168433026,141.0319,99.413,99.324,3.82332615]
[1770168433230,141.0178,99.423,99.32,8.10460726]
[1770168433231,9.0674,99.4,99.332,3.82332615]
[1770168433930,0.57061475,99.403,99.332,3.82332615]
[1770168435333,0.57061475,99.403,99.335,3.82332615]
[1770168436131,9.63781475,99.403,99.339,3.82332615]
[1770168438133,0.57061475,99.403,99.341,3.82332615]
[1770168438528,0.54841903,99.42,99.345,141.1262]
[1770168438727,9.0649,99.428,99.355,3.82332615]
[1770168439330,8.10460726,99.45,99.346,401.88]
[1770168439331,9.0652,99.425,99.361,3.82332615]
[1770168439635,0.56133534,99.427,99.361,3.82332615]
[1770168440336,0.56133534,99.427,99.364,3.82332615]
[1770168440928,8.10460726,99.45,99.364,3.82332615]
[1770168440929,0.55089831,99.449,99.367,3.70769336]
[1770168441139,0.55089831,99.449,99.374,3.70769336]
[1770168441436,0.55089831,99.449,99.381,3.70769336]
[1770168442028,9.0621,99.458,99.389,3.70769336]
[1770168442228,0.58770736,99.467,99.398,3.70769336]
[1770168442432,0.58770736,99.467,99.399,3.70769336]
[1770168443736,0.58770736,99.467,99.403,3.70769336]
[1770168443939,9.65751559,99.476,99.403,3.70769336]
[1770168444142,0.59701559,99.475,99.403,3.70769336]
[1770168444338,0.59701559,99.475,99.406,3.70769336]
[1770168445037,8.10460726,99.48,99.385,141.0692]
[1770168445038,9.65771559,99.474,99.408,3.70769336]
[1770168446739,9.65771559,99.474,99.41,3.70769336]
[1770168447043,9.0595,99.487,99.41,3.70769336]
[1770168447336,140.8857,99.516,99.437,3.70769336]
[1770168447337,0.66605411,99.516,99.437,3.70769336]
[1770168447534,9.058,99.504,99.437,3.70769336]
[1770168447738,140.8548,99.538,99.437,3.70769336]
[1770168447739,0.66605411,99.503,99.437,3.70769336]
[1770168448134,0.66605411,99.494,99.424,401.58]
[1770168448333,0.66605411,99.487,99.424,401.58]
[1770168448842,0.66605411,99.487,99.425,3.70769336]
[1770168449335,9.0596,99.486,99.425,3.70769336]
[1770168449534,0.66605411,99.487,99.425,3.70769336]
[1770168450737,0.66605411,99.487,99.426,3.70769336]
[1770168452145,9.72555411,99.487,99.428,12.77249336]
[1770168452437,9.72555411,99.487,99.429,3.70769336]
[1770168453040,0.6289606,99.483,99.429,3.70769336]
[1770168453234,0.6289606,99.483,99.415,401.54]
[1770168453437,0.6289606,99.483,99.416,3.70769336]
[1770168454832,9.061,99.471,99.416,3.70769336]
[1770168455036,8.09721698,99.49,99.416,3.70769336]
[1770168455037,0.62979329,99.47,99.416,3.70769336]
[1770168455342,0.6323899,99.46,99.398,3.70769336]
[1770168455937,9.0635,99.443,99.398,3.70769336]
[1770168456344,0.6323899,99.442,99.38,3.70769336]
[1770168457040,0.6323899,99.477,99.392,3.70769336]
[1770168457541,0.6323899,99.477,99.396,3.70769336]
[1770168457735,9.0613,99.467,99.408,3.70769336]
[1770168458440,0.6323899,99.477,99.408,3.70769336]
[1770168458641,0.66278593,99.456,99.389,3.70769336]
[1770168458942,0.66278593,99.479,99.395,3.70769336]
[1770168459735,9.0611,99.469,99.411,3.70769336]
[1770168459938,140.9206,99.491,99.39,3.70769336]
[1770168459939,8.09721698,99.46,99.39,3.70769336]
[1770168460443,9.063,99.449,99.392,3.70769336]
[1770168460643,8.09721698,99.46,99.392,3.70769336]
[1770168461445,9.0629,99.45,99.395,3.70769336]
[1770168462146,9.0637,99.441,99.395,3.70769336]
[1770168462545,0.8750803,99.451,99.395,3.70769336]
[1770168463747,9.9378803,99.451,99.395,3.70769336]
[1770168464348,9.0636,99.442,99.395,3.70769336]
[1770168465352,9.0646,99.432,99.376,3.70769336]
[1770168466242,9.0636,99.443,99.378,3.70769336]
[1770168466442,0.76169251,99.452,99.378,3.70769336]
[1770168467749,140.9868,99.445,99.378,3.70769336]
[1770168467955,0.75748967,99.439,99.378,3.70769336]
[1770168468753,9.0653,99.424,99.378,3.70769336]
[1770168469248,0.75748967,99.433,99.359,3.70769336]
[1770168469647,9.066,99.416,99.361,3.70769336]
[1770168469852,0.75748967,99.433,99.361,3.70769336]
[1770168470749,9.0651,99.426,99.366,3.62892615]
[1770168470954,1.1219133,99.426,99.366,3.62892615]
[1770168471153,1.17815405,99.423,99.366,3.62892615]
[1770168471457,141.0163,99.424,99.356,401.38]
[1770168471458,9.0673,99.402,99.356,401.38]
[1770168471755,1.17815405,99.419,99.356,401.38]
[1770168472250,9.0671,99.404,99.356,401.38]
[1770168473343,9.0671,99.404,99.347,3.62892615]
[1770168473549,9.0682,99.392,99.347,3.62892615]
[1770168474251,9.0682,99.392,99.299,141.1914]
[1770168474252,1.16178074,99.375,99.306,3.62892615]
[1770168474653,9.0713,99.358,99.306,3.62892615]
[1770168475356,9.0704,99.368,99.306,3.62892615]
[1770168475752,141.0942,99.369,99.306,3.62892615]
[1770168475952,9.0712,99.359,99.306,3.62892615]
[1770168476353,9.0722,99.348,99.306,3.62892615]
[1770168476554,9.0722,99.348,99.292,401.44]
[1770168476756,9.0722,99.348,99.293,3.82649919]
[1770168478356,9.0711,99.36,99.294,3.82649919]
[1770168478859,1.16324727,99.368,99.294,3.82649919]
[1770168479157,9.0705,99.367,99.3,3.82649919]
[1770168479358,8.09721698,99.38,99.3,3.82649919]
[1770168479359,0.58391993,99.366,99.3,3.82649919]
[1770168479659,0.58391993,99.36,99.3,3.82649919]
[1770168480058,9.0727,99.343,99.3,3.82649919]
[1770168480561,0.58391993,99.379,99.3,3.82649919]
[1770168481254,0.53755649,99.36,99.292,401.44]
[1770168481454,141.65295649,99.354,99.287,3.82649919]
[1770168481657,141.65295649,99.354,99.26,8.09721698]
[1770168481658,0.53755649,99.339,99.248,3.82649919]
[1770168481855,0.53755649,99.31,99.248,3.82649919]
[1770168482056,141.1437,99.334,99.248,3.82649919]
[1770168482057,0.53755649,99.328,99.248,3.82649919]
[1770168482261,0.53755649,99.328,99.261,3.82649919]
[1770168483160,9.0749,99.319,99.261,3.82649919]
[1770168483456,0.4043955,99.346,99.261,3.82649919]
[1770168483863,0.4043955,99.346,99.253,401.6]
[1770168483864,0.4043955,99.369,99.294,3.82649919]
[1770168484755,0.4043955,99.369,99.29,8.09721698]
[1770168484756,0.4043955,99.369,99.307,3.82649919]
[1770168485261,9.4746955,99.369,99.312,9.0754]
[1770168485750,9.4746955,99.369,99.307,3.82649919]
[1770168486357,0.1773517,99.355,99.28,3.82649919]
[1770168486956,0.1773517,99.355,99.291,3.82649919]
[1770168487460,0.1773517,99.355,99.302,9.0763]
[1770168488357,0.15570163,99.373,99.312,9.0754]
[1770168488555,0.15570163,99.373,99.313,3.82649919]
[1770168488753,8.09721698,99.4,99.293,141.2009]
[1770168488754,0.15570163,99.392,99.316,3.82649919]
[1770168489262,9.0673,99.402,99.337,3.82649919]
[1770168490060,0.13850076,99.396,99.337,3.82649919]
[1770168490863,9.068,99.394,99.337,3.82649919]
[1770168491255,0.16928716,99.384,99.319,3.82649919]
[1770168491963,9.0708,99.363,99.319,3.82649919]
[1770168492956,9.0708,99.363,99.298,3.82649919]
[1770168493664,9.0719,99.351,99.298,3.82649919]
[1770168497971,9.071,99.361,99.298,3.82649919]
[1770168499969,0.2752084,99.35,99.281,3.82649919]
[1770168501667,9.0731,99.338,99.281,3.82649919]
[1770168504669,9.074,99.329,99.281,3.82649919]
[1770168505271,0.24902888,99.332,99.281,3.82649919]
[1770168506563,0.24902888,99.309,99.24,3.73090893]
[1770168506769,0.24902888,99.309,99.241,3.73090893]
[1770168507270,0.4470279,99.326,99.246,3.73090893]
[1770168507664,0.4470279,99.326,99.248,3.73090893]
[1770168508267,0.4470279,99.363,99.289,3.73090893]
[1770168508665,0.4470279,99.361,99.289,3.73090893]
[1770168508866,9.0721,99.349,99.291,3.73090893]
[1770168509268,0.3073306,99.355,99.291,3.73090893]
[1770168509568,9.0731,99.338,99.291,3.73090893]
[1770168510866,9.072,99.35,99.291,3.73090893]
[1770168511674,9.072,99.35,99.294,3.73090893]
[1770168513170,9.0728,99.341,99.294,3.73090893]
[1770168513370,0.23384058,99.34,99.281,3.73173661]
[1770168513577,9.0742,99.326,99.281,3.73173661]
[1770168514076,9.0742,99.326,99.269,401.8]
[1770168514276,9.0742,99.326,99.264,3.73173661]
[1770168514473,0.23384058,99.34,99.264,3.73173661]
[1770168514474,9.0751,99.316,99.264,3.73173661]
[1770168514879,0.23384058,99.322,99.265,9.0797]
[1770168515280,0.23384058,99.322,99.264,3.73173661]
[1770168515979,9.0747,99.321,99.264,3.73173661]
[1770168516480,0.23384058,99.322,99.264,3.73173661]
[1770168516674,9.0746,99.321,99.264,3.73173661]
[1770168516879,0.24762905,99.341,99.266,3.73090893]
[1770168517077,0.24762905,99.341,99.268,3.73090893]
[1770168517972,149.22324532,99.36,99.273,3.73487082]
[1770168517973,0.22757217,99.359,99.273,3.73487082]
[1770168518572,0.22757217,99.359,99.289,3.73487082]
[1770168519170,0.22754782,99.357,99.289,3.73487082]
[1770168520475,9.0733,99.336,99.289,3.73487082]
[1770168521376,9.0749,99.319,99.271,3.73656687]
[1770168522179,9.0756,99.31,99.271,3.73656687]
[1770168522486,0.22418007,99.331,99.271,3.73656687]
[1770168524680,9.0746,99.322,99.271,3.73656687]
[1770168525393,9.0736,99.332,99.274,3.73090893]
[1770168526086,0.28028279,99.351,99.287,3.73090893]
[1770168526483,0.28028279,99.349,99.287,3.73090893]
[1770168526683,9.0746,99.321,99.287,3.73090893]
[1770168527690,9.0755,99.312,99.27,401.84]
[1770168528784,9.0746,99.322,99.271,3.73090893]
[1770168529589,9.0737,99.331,99.271,3.73090893]
[1770168529989,0.27236195,99.337,99.271,3.73090893]
[1770168531791,9.0745,99.323,99.271,3.73090893]
[1770168533997,9.0746,99.322,99.271,3.73090893]
[1770168534200,0.26312825,99.33,99.271,3.73090893]
[1770168534798,9.0756,99.311,99.271,3.73090893]
[1770168534990,0.26312825,99.347,99.271,3.73090893]
[1770168535397,9.0732,99.338,99.281,3.77819509]
[1770168535599,0.26312825,99.347,99.281,3.77819509]
[1770168536296,9.0737,99.331,99.281,3.77819509]
[1770168536497,0.26312825,99.347,99.281,3.77819509]
[1770168536797,0.25845293,99.339,99.281,3.77819509]
[1770168537698,9.0745,99.322,99.281,3.77819509]
[1770168540900,0.30442933,99.313,99.263,3.70374452]
[1770168541096,141.1842,99.306,99.217,3.70374452]
[1770168541302,0.28542534,99.3,99.219,3.70657961]
[1770168541600,9.0774,99.291,99.225,3.70657961]
[1770168541801,0.28542534,99.3,99.225,3.70657961]
[1770168542196,9.0767,99.299,99.232,3.70657961]
[1770168542602,0.28542534,99.3,99.232,3.70657961]
[1770168542797,0.28542534,99.279,99.219,3.70657961]
[1770168543502,0.28542534,99.279,99.222,3.72376693]
[1770168543903,9.0787,99.277,99.224,3.72376693]
[1770168547506,0.28542534,99.279,99.224,3.72376693]
[1770168548205,9.0786,99.278,99.225,12.82167563]
[1770168548805,0.28542534,99.279,99.23,3.73827563]
[1770168549108,0.2220333,99.299,99.23,3.73827563]
[1770168549305,0.2220333,99.299,99.232,3.75695818]
[1770168550407,9.0779,99.285,99.232,3.75695818]
[1770168550800,0.2220333,99.299,99.232,3.75695818]
[1770168551806,9.0772,99.294,99.235,3.75913967]
[1770168553310,9.0778,99.286,99.235,3.75913967]
[1770168553707,0.2220333,99.299,99.235,3.75913967]
[1770168554812,9.077,99.295,99.235,3.75913967]
[1770168555408,9.077,99.295,99.24,3.25051888]
[1770168555609,9.077,99.295,99.24,6.9542634]
[1770168555809,0.45173428,99.292,99.24,3.70374452]
[1770168556006,3.25051888,99.32,99.261,3.70374452]
[1770168556314,0.45173428,99.321,99.271,3.70374452]
[1770168556516,0.45173428,99.321,99.272,3.70374452]
[1770168556911,3.70225316,99.32,99.272,3.70374452]
[1770168557118,0.45173428,99.309,99.253,3.70374452]
[1770168557710,0.45173428,99.309,99.257,3.70374452]
[1770168558112,0.45173428,99.309,99.26,6.9542634]
[1770168558310,0.4606334,99.326,99.271,3.70374452]
[1770168558821,0.4606334,99.339,99.281,3.70374452]
[1770168559720,9.0734,99.335,99.281,3.70374452]
[1770168560117,0.4606334,99.339,99.281,3.70374452]
[1770168561712,0.4606334,99.339,99.283,3.53986141]
[1770168563524,9.0733,99.336,99.283,3.53986141]
[1770168565116,9.84998094,99.327,99.283,3.53986141]
[1770168565522,3.25051888,99.32,99.283,3.53986141]
[1770168565722,9.0749,99.318,99.265,3.50564119]
[1770168566019,3.25051888,99.31,99.265,3.50564119]
[1770168566325,12.32711888,99.3,99.241,3.50564119]
[1770168566525,4.02639982,99.31,99.251,3.50564119]
[1770168566726,0.77588094,99.31,99.251,3.50564119]
[1770168566926,3.25051888,99.32,99.261,3.50564119]
[1770168567125,0.77588094,99.319,99.261,3.50564119]
[1770168567526,9.0751,99.316,99.261,3.50564119]
[1770168568925,0.77588094,99.319,99.264,3.50564119]
[1770168569123,3.25051888,99.33,99.271,3.50564119]
[1770168569425,0.8014294,99.334,99.271,3.50564119]
[1770168569626,0.8014294,99.334,99.281,3.50564119]
[1770168570125,435.72921647,99.386,99.263,401.9]
[1770168570126,0.77315099,99.368,99.291,3.50564119]
[1770168570328,0.77315099,99.359,99.291,3.50564119]
[1770168570524,0.77315099,99.359,99.301,3.50564119]
[1770168570725,9.0722,99.348,99.301,3.50564119]
[1770168570922,3.25051888,99.35,99.301,3.50564119]
[1770168571224,3.25051888,99.34,99.281,3.50564119]
[1770168571422,9.84525099,99.349,99.291,3.50564119]
[1770168571929,9.0712,99.359,99.301,3.50564119]
[1770168572125,0.90283944,99.358,99.301,3.50564119]
[1770168572931,141.075,99.382,99.301,3.50564119]
[1770168572932,0.90283944,99.349,99.301,3.50564119]
[1770168573722,9.97493944,99.349,99.301,3.50564119]
[1770168573929,4.23806752,99.34,99.286,3.50564119]
[1770168574231,4.23806752,99.34,99.287,9.0777]
[1770168574232,9.073,99.339,99.287,9.0777]
[1770168574433,3.2462729,99.35,99.288,3.50564119]
[1770168574630,4.23806752,99.35,99.288,3.50564119]
[1770168574832,0.99179462,99.349,99.288,3.50564119]
[1770168575528,9.0721,99.349,99.3,3.2462729]
[1770168575724,9.0721,99.349,99.301,3.50564119]
[1770168576028,3.2462729,99.36,99.301,3.50564119]
[1770168576533,9.0714,99.357,99.302,3.50564119]
[1770168576731,3.2462729,99.35,99.302,3.50564119]
[1770168577830,9.0721,99.349,99.302,3.50564119]
[1770168578830,1.00643483,99.356,99.302,3.50564119]
[1770168582030,4.46629762,99.34,99.285,405.40564119]
[1770168582229,3.2462729,99.33,99.286,3.50564119]
[1770168582434,141.0915,99.371,99.291,3.50564119]
[1770168582435,1.22002472,99.365,99.291,3.50564119]
[1770168582627,3.2462729,99.35,99.291,3.50564119]
[1770168582828,3.2462729,99.36,99.301,3.50564119]
[1770168583031,9.0713,99.358,99.301,3.50564119]
[1770168583437,3.2462729,99.35,99.301,3.50564119]
[1770168583638,9.0721,99.349,99.301,3.50564119]
[1770168585231,10.30300049,99.359,99.301,3.50564119]
[1770168585431,3.2462729,99.37,99.311,3.50564119]
[1770168585733,3.2462729,99.37,99.318,3.50564119]
[1770168586740,9.0704,99.368,99.318,3.50564119]
[1770168588741,9.0703,99.369,99.318,3.50564119]
[1770168589242,1.72781225,99.368,99.318,3.50564119]
[1770168589438,10.81115283,99.355,99.302,3.50564119]
[1770168589636,1.73955283,99.355,99.302,3.50564119]
[1770168589837,3.2462729,99.35,99.302,3.50564119]
[1770168590237,9.0723,99.347,99.302,3.50564119]
[1770168593745,1.73955283,99.355,99.304,3.5688005]
[1770168594043,1.77767475,99.371,99.311,3.5688005]
[1770168594939,1.77767475,99.387,99.321,3.5688005]
[1770168595543,3.24497652,99.4,99.342,3.60794907]
[1770168596643,1.78513829,99.389,99.342,3.60794907]
[1770168600051,1.71449072,99.388,99.342,3.60794907]
[1770168600255,1.71449072,99.379,99.324,3.60794907]
[1770168600651,1.71449072,99.379,99.322,401.74]
[1770168600652,1.71449072,99.395,99.341,3.60794907]
[1770168600856,1.71449072,99.409,99.341,3.60794907]
[1770168601355,1.71216842,99.379,99.326,3.60794907]
[1770168602653,3.24497652,99.38,99.31,3.24497652]
[1770168602654,1.71216842,99.366,99.31,6.85292559]
[1770168602847,3.24497652,99.35,99.31,3.60794907]
[1770168603254,9.0723,99.346,99.31,3.60794907]
[1770168603452,3.24497652,99.35,99.31,3.60794907]
[1770168604057,3.24497652,99.36,99.31,3.60794907]
[1770168604554,9.0713,99.358,99.31,3.60794907]
[1770168604749,1.73082573,99.357,99.296,3.60794907]
[1770168604954,9.0706,99.365,99.309,3.60794907]
[1770168605358,1.85349244,99.369,99.309,3.60794907]
[1770168605555,3.24497652,99.36,99.309,3.60794907]
[1770168606461,1.85349244,99.387,99.311,3.60794907]
[1770168606654,3.24497652,99.38,99.311,3.60794907]
[1770168607050,9.0704,99.368,99.311,3.60794907]
[1770168607457,1.85349244,99.379,99.311,3.60794907]
[1770168607956,9.0707,99.365,99.311,3.60794907]
[1770168608566,3.24497652,99.37,99.313,3.60794907]
[1770168608862,3.24497652,99.39,99.321,3.60794907]
[1770168609056,3.24497652,99.39,99.322,3.60794907]
[1770168609259,1.86002114,99.386,99.326,3.60794907]
[1770168610660,9.0689,99.384,99.326,3.60794907]
[1770168611763,9.0689,99.384,99.321,401.7]
[1770168611764,1.85315886,99.369,99.321,401.7]
[1770168611957,3.24497652,99.35,99.311,3.60794907]
[1770168612570,9.0714,99.357,99.311,3.60794907]
[1770168612766,1.85315886,99.356,99.294,3.60794907]
[1770168612963,3.24497652,99.34,99.294,3.60794907]
[1770168613264,3.24497652,99.33,99.278,3.60794907]
[1770168613665,3.24497652,99.32,99.278,3.60794907]
[1770168613861,3.24497652,99.33,99.278,3.60794907]
[1770168614068,3.24497652,99.35,99.281,3.60794907]
[1770168614261,1.88288882,99.36,99.28,3.24497652]
[1770168614262,5.12786534,99.36,99.29,3.24497652]
[1770168614467,10.95248882,99.377,99.313,3.60794907]
[1770168614668,10.95248882,99.377,99.321,3.60794907]
[1770168614868,141.0584,99.394,99.321,3.60794907]
[1770168614869,1.88288882,99.369,99.321,3.60794907]
[1770168615165,1.88288882,99.369,99.254,159.4171]
[1770168615166,1.79539895,99.358,99.305,3.60794907]
[1770168616071,3.24497652,99.37,99.305,3.60794907]
[1770168616370,1.79539895,99.376,99.311,3.60794907]
[1770168616570,1.79539895,99.376,99.313,3.60794907]
[1770168616571,9.0698,99.375,99.313,3.60794907]
[1770168616768,3.24497652,99.39,99.321,3.60794907]
[1770168617768,3.24497652,99.4,99.331,3.60794907]
[1770168618072,3.24497652,99.38,99.331,3.60794907]
[1770168618272,12.31417652,99.38,99.331,3.60794907]
[1770168619072,9.0701,99.371,99.331,3.60794907]
[1770168619267,1.81046306,99.383,99.313,3.60794907]
[1770168619473,3.24497652,99.37,99.313,3.60794907]
[1770168619672,3.24497652,99.38,99.313,3.60794907]
[1770168620573,9.0703,99.369,99.313,3.60794907]
[1770168620970,1.79600019,99.379,99.313,3.60794907]
[1770168622673,1.80791191,99.395,99.328,3.84459425]
[1770168622868,1.80791191,99.389,99.328,3.84459425]
[1770168623074,3.24497652,99.38,99.328,3.84459425]
[1770168623372,3.24497652,99.37,99.328,3.84459425]
[1770168624668,9.0701,99.371,99.328,3.84459425]
[1770168624970,9.0709,99.362,99.328,3.84459425]
[1770168625174,3.24497652,99.35,99.295,3.84459425]
[1770168625764,3.24497652,99.34,99.295,3.84459425]
[1770168626372,9.0724,99.346,99.295,3.84459425]
[1770168626569,3.24497652,99.34,99.278,3.84459425]
[1770168626769,3.24497652,99.32,99.278,3.84459425]
[1770168626962,9.0754,99.312,99.256,3.84459425]
[1770168627367,3.24497652,99.32,99.256,3.84459425]
[1770168627574,9.075,99.317,99.259,3.84459425]
[1770168627775,1.81820094,99.329,99.261,3.84459425]
[1770168628370,9.0732,99.337,99.277,3.84459425]
[1770168628971,9.0732,99.337,99.28,3.84459425]
[1770168629277,1.82259554,99.364,99.28,3.84459425]
[1770168629867,1.61929108,99.35,99.283,3.84459425]
[1770168630571,9.0737,99.331,99.283,3.84459425]
[1770168631275,9.0745,99.323,99.283,3.84459425]
[1770168632374,1.59065432,99.33,99.265,3.84459425]
[1770168633580,9.0746,99.322,99.267,3.84459425]
[1770168634379,9.0753,99.314,99.267,3.84459425]
[1770168635377,9.0744,99.324,99.267,3.84459425]
[1770168635678,1.59065432,99.33,99.267,3.84459425]
[1770168636380,9.0746,99.322,99.267,3.84459425]
[1770168637783,1.59065432,99.33,99.273,3.84459425]
[1770168639777,1.54861505,99.319,99.257,12.92499425]
[1770168639978,1.54861505,99.319,99.258,3.84459425]
[1770168640479,1.54861505,99.342,99.258,3.84459425]
[1770168641771,1.5362542,99.324,99.268,3.84459425]
[1770168641974,1.5362542,99.321,99.248,3.84459425]
[1770168642372,1.5362542,99.339,99.258,3.84459425]
[1770168642882,1.5362542,99.339,99.285,3.84459425]
[1770168643683,9.074,99.328,99.285,3.84459425]
[1770168645577,9.0755,99.312,99.267,3.84459425]
[1770168646374,9.0764,99.302,99.249,3.84459425]
[1770168647182,1.49044391,99.332,99.256,3.84459425]
[1770168647379,1.49044391,99.332,99.258,3.84459425]
[1770168647785,1.49044391,99.332,99.267,3.84459425]
[1770168648174,1.49044391,99.332,99.257,401.86]
[1770168648175,1.49044391,99.332,99.28,3.84459425]
[1770168648483,3.24869513,99.32,99.28,3.84459425]
[1770168648782,1.49044391,99.332,99.28,3.84459425]
[1770168648783,3.24869513,99.33,99.28,3.84459425]
[1770168650075,3.24869513,99.32,99.28,3.84459425]
[1770168651285,3.24869513,99.31,99.262,3.58805229]
[1770168652787,3.24869513,99.3,99.262,3.58805229]
[1770168653887,3.24869513,99.31,99.262,3.58805229]
[1770168654776,3.24869513,99.31,99.263,3.58805229]
[1770168654988,9.075,99.317,99.263,3.58805229]
[1770168655182,3.24869513,99.31,99.263,3.58805229]
[1770168655787,3.24869513,99.31,99.265,9.0797]
[1770168656380,3.24869513,99.31,99.265,12.59150693]
[1770168657088,3.24869513,99.31,99.266,3.51180693]
[1770168658786,3.24869513,99.31,99.267,12.59130693]
[1770168659088,3.24869513,99.31,99.268,3.51180693]
[1770168661289,9.075,99.317,99.268,3.51180693]
[1770168661483,10.25563744,99.317,99.268,3.51180693]
[1770168661684,3.24869513,99.33,99.273,3.51180693]
[1770168662494,3.24869513,99.35,99.283,3.51180693]
[1770168662682,3.24869513,99.35,99.285,3.51180693]
[1770168662989,3.24869513,99.36,99.307,3.51180693]
[1770168663689,1.18063744,99.366,99.32,3.51180693]
[1770168664092,3.24869513,99.36,99.305,3.51180693]
[1770168664389,3.24869513,99.34,99.293,3.51180693]
[1770168664693,3.24869513,99.34,99.297,9.0767]
[1770168664889,3.24869513,99.34,99.28,401.9]
[1770168664890,3.24869513,99.35,99.298,3.51180693]
[1770168665091,3.24869513,99.36,99.298,3.51180693]
[1770168665490,1.37348028,99.369,99.319,9.0748]
[1770168665691,1.37348028,99.359,99.314,3.51180693]
[1770168666491,1.37348028,99.359,99.315,9.0751]
[1770168667693,1.37348028,99.359,99.314,3.51180693]
[1770168668495,9.0713,99.357,99.314,3.51180693]
[1770168668796,3.24869513,99.35,99.314,3.51180693]
[1770168669091,9.0713,99.357,99.314,3.51180693]
[1770168670389,1.37348028,99.359,99.314,3.51180693]
[1770168670591,3.24869513,99.36,99.314,3.51180693]
[1770168671691,3.24869513,99.36,99.315,9.0751]
[1770168671897,3.24869513,99.36,99.316,3.51180693]
[1770168674090,3.24869513,99.37,99.32,3.51180693]
[1770168674295,9.0694,99.378,99.32,3.51180693]
[1770168675401,9.0694,99.378,99.33,3.51180693]
[1770168676294,4.92664901,99.38,99.333,3.51180693]
[1770168676893,4.92664901,99.38,99.335,9.0733]
[1770168678903,3.24869513,99.37,99.335,9.0733]
[1770168679404,4.92664901,99.38,99.335,9.0733]
[1770168683108,3.24869513,99.37,99.333,3.51180693]
[1770168685301,9.0692,99.381,99.335,3.69231987]
[1770168685302,3.24869513,99.38,99.335,3.69231987]
[1770168686810,3.24869513,99.37,99.335,3.69231987]
[1770168687111,3.24869513,99.38,99.335,3.69231987]
[1770168687303,3.24869513,99.39,99.342,3.69231987]
[1770168687711,1.77839772,99.389,99.342,3.69231987]
[1770168688907,10.84689772,99.389,99.342,3.69231987]
[1770168694003,9.0671,99.403,99.342,3.69231987]
[1770168694203,1.70873959,99.421,99.351,3.69231987]
[1770168694408,3.24160658,99.43,99.361,3.69231987]
[1770168695107,175.86849121,99.472,99.353,141.1151]
[1770168695108,4.95034617,99.45,99.381,3.69231987]
[1770168695500,1.7014949,99.447,99.39,3.69231987]
[1770168695706,3.24160658,99.42,99.361,3.69231987]
[1770168695906,3.24160658,99.43,99.361,3.69231987]
[1770168696103,1.7014949,99.437,99.38,3.69231987]
[1770168696801,1.7014949,99.437,99.385,3.69231987]
[1770168697210,3.24160658,99.41,99.359,3.69231987]
[1770168698212,3.24160658,99.4,99.359,3.69231987]
[1770168701107,9.0669,99.406,99.359,3.69231987]
[1770168701314,4.87849311,99.41,99.359,3.69231987]
[1770168701510,3.24160658,99.42,99.37,3.69231987]
[1770168701708,1.68353108,99.426,99.37,3.69231987]
[1770168702105,9.0653,99.424,99.37,3.69231987]
[1770168702413,3.24160658,99.42,99.37,3.69231987]
[1770168703913,9.0653,99.424,99.37,3.69231987]
[1770168704319,9.0653,99.424,99.371,3.69231987]
[1770168705816,9.0652,99.425,99.371,3.69231987]
[1770168706015,1.76216783,99.424,99.371,3.69231987]
[1770168706216,1.76216783,99.409,99.351,3.69231987]
[1770168706815,1.76216783,99.389,99.335,3.69231987]
[1770168707023,3.24160658,99.38,99.335,3.69231987]
[1770168707513,9.0693,99.379,99.335,3.69231987]
[1770168707719,10.84578763,99.379,99.335,3.69231987]
[1770168708018,9.0666,99.409,99.357,3.69231987]
[1770168708214,1.77648763,99.412,99.357,3.69231987]
[1770168708608,3.24160658,99.42,99.357,3.69231987]
[1770168709416,2.51758587,99.436,99.371,3.69231987]
[1770168709616,140.9399,99.478,99.355,141.1129]
[1770168709617,1.47093302,99.459,99.391,3.69231987]
[1770168709809,9.0624,99.455,99.401,9.0673]
[1770168710118,1.47093302,99.459,99.401,3.69231987]
[1770168711108,3.24160658,99.47,99.401,3.69231987]
[1770168711816,9.0611,99.469,99.412,3.5048367]
[1770168712010,165.44,99.506,99.412,3.5048367]
[1770168712011,3.24160658,99.49,99.421,3.5048367]
[1770168712216,4.71375763,99.49,99.421,3.5048367]
[1770168712615,1.47215105,99.49,99.432,3.5048367]
[1770168713715,1.47215105,99.49,99.44,12.5685367]
[1770168713912,4.71375763,99.49,99.44,3.5048367]